fUST/lending_fUST_20250517
["ID","MTS","AMOUNT","RATE_DAILY","PERIOD"]
[361274590,1747413041183,-404.0,0.00014478,2]
[361274591,1747413041192,-2236.0,0.00014478,2]
[361274592,1747413041202,-707.0,0.00014478,2]
[361274593,1747413041211,-2788.86,0.0001452,2]
[361274594,1747413041220,-801.48,0.0001452,2]
[361274595,1747413041230,-450.0,0.0001452,2]
[361274596,1747413041238,-385.253,0.00014568,2]
[361274597,1747413041247,-2788.86,0.00014657,2]
[361274598,1747413041256,-801.48,0.00014657,2]
[361274599,1747413041266,-450.0,0.00014657,2]
[361274600,1747413041275,-2788.86,0.00014794,2]
[361274601,1747413041284,-801.48,0.00014794,2]
[361274602,1747413041293,-450.0,0.00014794,2]
[361274603,1747413041303,-275.84763734,0.00014799,2]
[361274604,1747413041312,-50000.0,0.000148,2]
[361274605,1747413041321,-2000.0,0.000148,2]
[361274606,1747413041330,-3000.0,0.0001484,3]
[361274607,1747413041339,-3223.38126339,0.0001485,2]
[361274608,1747413041349,-151.0,0.0001485,2]
[361274609,1747413041358,-151.0,0.0001485,2]
[361274610,1747413041368,-151.0,0.00014867,2]
[361274611,1747413041378,-500.0,0.00014873,2]
[361274612,1747413041388,-500.0,0.00014873,2]
[361274613,1747413041398,-500.0,0.00014873,2]
[361274614,1747413041408,-500.0,0.00014873,2]
[361274615,1747413041418,-500.0,0.00014873,2]
[361274616,1747413041428,-500.0,0.00014873,2]
[361274617,1747413041437,-500.0,0.00014873,2]
[361274618,1747413041446,-500.0,0.00014873,2]
[361274619,1747413041456,-500.0,0.00014873,2]
[361274620,1747413041465,-500.0,0.00014873,2]
[361274621,1747413041475,-509.77833502,0.00014873,2]
[361274622,1747413041484,-500.0,0.00014873,2]
[361274623,1747413041493,-500.0,0.00014873,2]
[361274624,1747413041503,-500.0,0.00014873,2]
[361274625,1747413041513,-500.0,0.00014873,2]
[361274626,1747413041522,-500.0,0.00014873,2]
[361274627,1747413041532,-500.0,0.00014873,2]
[361274628,1747413041541,-500.0,0.00014873,2]
[361274629,1747413041551,-500.0,0.00014873,2]
[361274630,1747413041560,-500.0,0.00014873,2]
[361274631,1747413041570,-500.0,0.00014873,2]
[361274632,1747413041579,-500.0,0.00014873,2]
[361274633,1747413041589,-500.0,0.00014873,2]
[361274634,1747413041598,-504.62142472,0.00014873,2]
[361274635,1747413041607,-504.0629566,0.00014873,2]
[361274636,1747413041616,-500.0,0.00014873,2]
[361274637,1747413041626,-500.0,0.00014873,2]
[361274638,1747413041635,-500.0,0.00014873,2]
[361274639,1747413041644,-500.0,0.00014873,2]
[361274640,1747413041653,-500.0,0.00014873,2]
[361274641,1747413041662,-500.0,0.00014873,2]
[361274642,1747413041681,-500.0,0.00014873,2]
[361274643,1747413041691,-212.26722696,0.000149,3]
[361274644,1747413041700,-8244.98220791,0.000149,3]
[361274645,1747413041710,-68167.68351071,0.000149,2]
[361275331,1747413461237,1149.0,0.000273,120]
[361275332,1747413498617,10000.0,8.02e-05,2]
[361275333,1747413514558,4315.75,8.02e-05,2]
[361275334,1747413567357,569.0,0.00027397,120]
[361275336,1747413719387,500.0,0.00027397,120]
[361275337,1747413731419,500.0,0.00027397,120]
[361275338,1747413744909,500.0,0.00027397,120]
[361275339,1747413766455,500.0,0.00027397,120]
[361275341,1747413896523,521.53,0.00027397,120]
[361275342,1747414019295,1000.0,0.00027,120]
[361275372,1747414232013,-5000.0,0.00011427,14]
[361275374,1747414232022,-1200.0,0.00011542,2]
[361275376,1747414232031,-8517.7156172,0.00011543,2]
[361275378,1747414232040,-265.0,0.00012208,2]
[361275380,1747414232050,-500.0,0.00012328,2]
[361275382,1747414232059,-500.0,0.00012328,2]
[361275384,1747414232068,-500.0,0.00012328,2]
[361275385,1747414232077,-604.51613265,0.00012328,2]
[361275386,1747414232087,-500.0,0.00012328,2]
[361275387,1747414232096,-500.0,0.00012328,2]
[361275388,1747414232106,-500.0,0.00012328,2]
[361275389,1747414232115,-500.0,0.00012328,2]
[361275390,1747414232124,-500.0,0.00012328,2]
[361275391,1747414232133,-635.66672087,0.00012328,2]
[361275392,1747414232152,-500.0,0.00012328,2]
[361275393,1747414232162,-438.14276099,0.00012328,2]
[361275394,1747414232172,-211.46768719,0.00012328,2]
[361275395,1747414232181,-289.78164262,0.00012328,2]
[361275397,1747414232275,-210.21835738,0.00012328,2]
[361275398,1747414232284,-500.0,0.00012328,2]
[361275400,1747414232294,-500.0,0.00012328,2]
[361275402,1747414232303,-500.0,0.00012328,2]
[361275404,1747414232313,-500.0,0.00012328,2]
[361275406,1747414232322,-500.0,0.00012328,2]
[361275408,1747414232332,-933.28,0.00012329,2]
[361275410,1747414232342,-994.65,0.00012329,2]
[361275412,1747414232351,-828.87,0.00012329,2]
[361275414,1747414232361,-690.73,0.00012329,2]
[361275416,1747414232372,-575.61,0.00012329,2]
[361275418,1747414232382,-479.67,0.00012329,2]
[361275420,1747414232392,-399.73,0.00012329,2]
[361275422,1747414232402,-333.11,0.00012329,2]
[361275424,1747414232411,-277.59,0.00012329,2]
[361275426,1747414232421,-231.32,0.00012329,2]
[361275428,1747414232431,-192.77,0.00012329,2]
[361275430,1747414232440,-160.64,0.00012329,2]
[361275432,1747414232450,-803.23,0.00012329,2]
[361275434,1747414232459,-18382.67490873,0.00012329,2]
[361275436,1747414232468,-24900.0,0.00012594,2]
[361275438,1747414232478,-209.6857415,0.00012659,2]
[361275440,1747414232488,-858.4626315,0.00012695,2]
[361275446,1747414232698,-480.0,0.00012696,2]
[361275447,1747414232712,-152.0,0.00012798,2]
[361275448,1747414232722,-549.23691089,0.00012992,2]
[361275449,1747414232731,-500.0,0.0001315,2]
[361275450,1747414232741,-500.0,0.0001315,2]
[361275451,1747414232751,-500.0076644,0.0001315,2]
[361275452,1747414232761,-500.0,0.0001336,2]
[361275453,1747414232770,-587.42499218,0.0001336,2]
[361275454,1747414232780,-500.0,0.0001336,2]
[361275455,1747414232789,-500.55177401,0.0001336,2]
[361275456,1747414232798,-610.08664121,0.0001336,2]
[361275457,1747414232808,-549.23691089,0.00013374,2]
[361275458,1747414232817,-500.0,0.00013517,2]
[361275459,1747414232827,-500.0,0.00013517,2]
[361275460,1747414232838,-500.0,0.00013517,2]
[361275461,1747414232847,-500.0,0.00013517,2]
[361275462,1747414232857,-500.0,0.00013517,2]
[361275463,1747414232867,-500.0,0.00013517,2]
[361275464,1747414232877,-500.0,0.00013517,2]
[361275465,1747414232886,-500.0,0.00013517,2]
[361275466,1747414232896,-446.14574839,0.00013517,2]
[361275467,1747414232905,-500.0,0.00013517,2]
[361275468,1747414232914,-422.37771278,0.00013517,2]
[361275469,1747414232923,-178.6490873,0.00013517,2]
[361275470,1747414232934,-500.0,0.00013517,2]
[361275471,1747414232943,-500.0,0.00013517,2]
[361275472,1747414232952,-500.0,0.00013517,2]
[361275473,1747414232962,-500.0,0.00013517,2]
[361275474,1747414232971,-500.0,0.00013517,2]
[361275475,1747414232981,-500.0,0.00013697,2]
[361275476,1747414232990,-500.0,0.00013697,2]
[361275477,1747414233000,-500.0,0.00013697,2]
[361275478,1747414233010,-199.92325904,0.00013697,2]
[361275479,1747414233019,-500.0,0.00013697,2]
[361275480,1747414233029,-500.0,0.00013697,2]
[361275481,1747414233038,-470.31479143,0.00013697,2]
[361275482,1747414233047,-500.0,0.00013697,2]
[361275483,1747414233057,-500.0,0.00013697,2]
[361275484,1747414233067,-500.0,0.00013697,2]
[361275485,1747414233076,-1000.0,0.00013698,2]
[361275486,1747414233086,-1000.0,0.00013698,2]
[361275487,1747414233095,-450.0,0.00013698,2]
[361275488,1747414233105,-589.47,0.00013698,2]
[361275489,1747414233115,-450.0,0.00013698,2]
[361275490,1747414233124,-450.0,0.00013698,2]
[361275491,1747414233133,-450.0,0.00013698,2]
[361275492,1747414233143,-450.0,0.00013698,2]
[361275493,1747414233152,-450.0,0.00013698,2]
[361275494,1747414233163,-450.0,0.00013698,2]
[361275495,1747414233172,-450.0,0.00013698,2]
[361275496,1747414233181,-450.0,0.00013698,2]
[361275497,1747414233190,-450.0,0.00013698,2]
[361275498,1747414233200,-450.0,0.00013698,2]
[361275499,1747414233209,-450.0,0.00013698,2]
[361275500,1747414233219,-551.65,0.00013698,2]
[361275501,1747414233228,-450.0,0.00013698,2]
[361275502,1747414233237,-450.0,0.00013698,2]
[361275503,1747414233248,-450.0,0.00013698,2]
[361275504,1747414233258,-450.0,0.00013698,2]
[361275505,1747414233267,-496.26,0.00013698,2]
[361275506,1747414233276,-1743.04,0.00013698,2]
[361275507,1747414233286,-560.62,0.00013698,2]
[361275508,1747414233296,-403.32077204,0.00013698,2]
[361275509,1747414233305,-450.0,0.00013698,2]
[361275510,1747414233314,-200.35910699,0.00013698,2]
[361275511,1747414233324,-490.81,0.00013698,2]
[361275512,1747414233335,-450.0,0.00013698,2]
[361275513,1747414233344,-450.0,0.00013698,2]
[361275514,1747414233353,-450.0,0.00013698,2]
[361275515,1747414233363,-450.0,0.00013698,2]
[361275516,1747414233373,-450.0,0.00013698,2]
[361275517,1747414233383,-450.0,0.00013698,2]
[361275518,1747414233393,-635.221001,0.00013699,2]
[361275519,1747414233402,-500.0,0.00013699,2]
[361275520,1747414233411,-629.35684801,0.00013699,2]
[361275521,1747414233421,-347.56232,0.0001375,2]
[361275522,1747414233430,-549.23691089,0.00013755,2]
[361275523,1747414233440,-450.0,0.00013835,2]
[361275524,1747414233449,-450.0,0.00013835,2]
[361275525,1747414233459,-277.53,0.00013835,2]
[361275526,1747414233469,-553.48960781,0.00013835,2]
[361275527,1747414233479,-1743.04,0.00013835,2]
[361275528,1747414233488,-450.0,0.00013835,2]
[361275529,1747414233497,-362.95486678,0.00013835,2]
[361275530,1747414233507,-450.0,0.00013835,2]
[361275531,1747414233516,-450.0,0.00013835,2]
[361275532,1747414233526,-227.52,0.00013835,2]
[361275533,1747414233536,-450.0,0.00013835,2]
[361275534,1747414233545,-160.0,0.00013854,2]
[361275535,1747414233555,-160.0,0.00013854,2]
[361275536,1747414233564,-422.39640784,0.00013854,2]
[361275537,1747414233575,-212.26722696,0.00013854,2]
[361275538,1747414233584,-998.24360331,0.00013854,2]
[361275539,1747414233595,-507.43774378,0.00013908,2]
[361275540,1747414233604,-1000.0,0.00013908,2]
[361275541,1747414233615,-450.0,0.00013972,2]
[361275542,1747414233626,-305.56,0.00013972,2]
[361275543,1747414233636,-1743.04,0.00013972,2]
[361275544,1747414233645,-450.0,0.00013972,2]
[361275545,1747414233655,-450.0,0.00013972,2]
[361275546,1747414233664,-450.0,0.00013972,2]
[361275547,1747414233674,-450.0,0.00013972,2]
[361275548,1747414233684,-347.56232,0.00013998,2]
[361275549,1747414233694,-363.2556249,0.00014055,2]
[361275550,1747414233704,-363.2556249,0.00014055,2]
[361275551,1747414233714,-363.2556249,0.00014055,2]
[361275552,1747414233724,-363.2556249,0.00014055,2]
[361275553,1747414233734,-363.2556249,0.00014055,2]
[361275554,1747414233743,-363.2556249,0.00014055,2]
[361275555,1747414233753,-1000.0,0.00014065,2]
[361275556,1747414233763,-1000.0,0.00014065,2]
[361275557,1747414233772,-1000.0,0.00014065,2]
[361275558,1747414233781,-166.21130884,0.00014065,2]
[361275559,1747414233792,-1000.0,0.00014065,2]
[361275560,1747414233802,-778.58561431,0.00014065,2]
[361275561,1747414233811,-199.41977507,0.00014065,2]
[361275562,1747414233821,-1000.0,0.00014065,2]
[361275563,1747414233831,-1000.0,0.00014065,2]
[361275564,1747414233840,-788.29388944,0.00014065,2]
[361275565,1747414233850,-1000.0,0.00014065,2]
[361275566,1747414233860,-253.16506924,0.00014109,2]
[361275567,1747414233870,-1743.04,0.00014109,2]
[361275568,1747414233879,-210.33,0.00014109,2]
[361275569,1747414233889,-450.0,0.00014109,2]
[361275570,1747414233899,-450.0,0.00014109,2]
[361275571,1747414233909,-450.0,0.00014109,2]
[361275572,1747414233918,-151.0,0.0001413,2]
[361275573,1747414233928,-207.4,0.0001413,2]
[361275574,1747414233938,-549.23691089,0.00014137,2]
[361275575,1747414233948,-569.459184,0.00014192,2]
[361275576,1747414233957,-288.2040774,0.00014192,2]
[361275577,1747414233967,-175.678528,0.00014192,2]
[361275578,1747414233977,-569.459184,0.00014192,2]
[361275579,1747414233987,-154.2938119,0.00014192,2]
[361275580,1747414233997,-158.0124312,0.00014192,2]
[361275581,1747414234007,-569.459184,0.00014192,2]
[361275582,1747414234017,-158.0124312,0.00014192,2]
[361275583,1747414234026,-153.0,0.00014192,2]
[361275584,1747414234035,-569.459184,0.00014192,2]
[361275585,1747414234045,-569.459184,0.00014192,2]
[361275586,1747414234054,-158.0124312,0.00014192,2]
[361275587,1747414234064,-158.0124312,0.00014192,2]
[361275588,1747414234082,-153.0,0.00014192,2]
[361275589,1747414234094,-569.459184,0.00014192,2]
[361275590,1747414234104,-1500.0,0.00014246,2]
[361275591,1747414234113,-1500.0,0.00014246,2]
[361275592,1747414234123,-347.56232,0.00014246,2]
[361275593,1747414234133,-1743.04,0.00014246,2]
[361275594,1747414234143,-230.0,0.00014246,2]
[361275595,1747414234152,-450.0,0.00014246,2]
[361275596,1747414234162,-151.0,0.00014278,2]
[361275597,1747414234171,-1743.04,0.00014383,2]
[361275598,1747414234181,-450.0,0.00014383,2]
[361275599,1747414234191,-1500.0,0.00014456,2]
[361275600,1747414234200,-347.56232,0.00014494,2]
[361275601,1747414234210,-160.0,0.00014518,2]
[361275602,1747414234220,-549.23691089,0.00014518,2]
[361275603,1747414234229,-412.375,0.0001452,2]
[361275604,1747414234239,-1743.04,0.0001452,2]
[361275605,1747414234249,-530.16,0.0001452,2]
[361275606,1747414234259,-707.0,0.00014584,2]
[361275607,1747414234268,-2236.0,0.00014584,2]
[361275608,1747414234278,-150.194,0.00014584,2]
[361275609,1747414234287,-404.0,0.00014584,2]
[361275610,1747414234297,-150.565,0.00014584,2]
[361275611,1747414234307,-1500.0,0.00014613,2]
[361275612,1747414234316,-1500.0,0.00014613,2]
[361275613,1747414234325,-1500.0,0.00014613,2]
[361275614,1747414234335,-1500.0,0.00014613,2]
[361275615,1747414234345,-1500.0,0.00014613,2]
[361275616,1747414234354,-501.18776165,0.00014613,2]
[361275617,1747414234364,-1500.0,0.00014613,2]
[361275618,1747414234374,-1743.04,0.00014657,2]
[361275619,1747414234383,-246.48124234,0.00014701,2]
[361275620,1747414234392,-800.0,0.0001473,2]
[361275621,1747414234402,-800.0,0.00014733,2]
[361275622,1747414234412,-347.56232,0.00014742,2]
[361275623,1747414234421,-800.0,0.00014758,2]
[361275624,1747414234431,-800.0,0.00014762,2]
[361275625,1747414234440,-151.0,0.00014762,2]
[361275626,1747414234449,-151.0,0.00014762,2]
[361275627,1747414234459,-151.0,0.00014762,2]
[361275628,1747414234468,-800.0,0.00014778,2]
[361275629,1747414234477,-4364.26934266,0.00014792,3]
[361275630,1747414234487,-263934.05387584,0.00014792,2]
[361275631,1747414234496,-165238.1988756,0.00014792,2]
[361275632,1747414234506,-151.0,0.00014792,2]
[361275633,1747414234515,-151.0,0.00014792,2]
[361275634,1747414234525,-165.993112,0.00014792,2]
[361275635,1747414234538,-151.0,0.00014792,2]
[361275636,1747414234547,-151.0,0.00014792,2]
[361275637,1747414234557,-2000.0,0.00014794,2]
[361275638,1747414234566,-2000.0,0.00014794,2]
[361275639,1747414234577,-151.0,0.00014794,2]
[361275640,1747414234586,-151.0,0.00014794,2]
[361275641,1747414234596,-151.0,0.00014794,2]
[361275642,1747414234606,-151.0,0.00014794,2]
[361275643,1747414234616,-204.684776,0.00014794,2]
[361275644,1747414234625,-276.599643,0.00014794,2]
[361275645,1747414234635,-1743.04,0.00014794,2]
[361275646,1747414234645,-151.0,0.00014794,2]
[361275647,1747414234655,-151.0,0.00014794,2]
[361275648,1747414234664,-250.0,0.000148,2]
[361275649,1747414234673,-354.10133324,0.00014809,2]
[361275650,1747414234861,-445.89866676,0.00014809,2]
[361275651,1747414234871,-800.0,0.00014819,2]
[361275652,1747414234880,-200.0,0.00014821,2]
[361275653,1747414234890,-800.0,0.00014822,2]
[361275654,1747414234899,-151.0,0.00014841,2]
[361275655,1747414234909,-111.33894059,0.00014841,2]
[361275656,1747414234920,-39.66105941,0.00014841,2]
[361275657,1747414234930,-151.0,0.00014841,2]
[361275658,1747414234939,-151.0,0.00014841,2]
[361275659,1747414234949,-151.0,0.00014841,2]
[361275660,1747414234959,-151.0,0.00014841,2]
[361275661,1747414234969,-151.0,0.00014841,2]
[361275662,1747414234978,-151.0,0.00014841,2]
[361275663,1747414234987,-285.626415,0.00014841,2]
[361275664,1747414234996,-936.604922,0.00014841,2]
[361275665,1747414235006,-936.604922,0.00014841,2]
[361275666,1747414235015,-936.604922,0.00014841,2]
[361275667,1747414235024,-936.604922,0.00014841,2]
[361275668,1747414235033,-151.0,0.00014841,2]
[361275669,1747414235042,-151.0,0.00014841,2]
[361275670,1747414235052,-151.0,0.00014841,2]
[361275671,1747414235061,-151.0,0.00014841,2]
[361275672,1747414235071,-151.0,0.00014841,2]
[361275673,1747414235081,-151.0,0.00014841,2]
[361275674,1747414235090,-151.0,0.00014842,2]
[361275675,1747414235100,-151.0,0.00014842,2]
[361275676,1747414235110,-151.0,0.00014842,2]
[361275677,1747414235120,-151.0,0.00014842,2]
[361275678,1747414235129,-151.0,0.00014842,2]
[361275679,1747414235139,-151.0,0.00014842,2]
[361275680,1747414235148,-151.0,0.00014842,2]
[361275681,1747414235157,-151.0,0.00014842,2]
[361275682,1747414235167,-151.0,0.00014842,2]
[361275683,1747414235176,-151.0,0.00014842,2]
[361275684,1747414235185,-271.284336,0.00014842,2]
[361275685,1747414235194,-151.0,0.00014842,2]
[361275686,1747414235203,-271.284336,0.00014842,2]
[361275687,1747414235212,-271.284336,0.00014842,2]
[361275688,1747414235221,-151.0,0.00014842,2]
[361275689,1747414235230,-151.0,0.00014842,2]
[361275690,1747414235240,-271.284336,0.00014842,2]
[361275691,1747414235250,-271.284336,0.00014842,2]
[361275692,1747414235259,-271.284336,0.00014842,2]
[361275693,1747414235268,-151.0,0.00014842,2]
[361275694,1747414235278,-151.0,0.00014842,2]
[361275695,1747414235288,-151.0,0.00014842,2]
[361275696,1747414235297,-151.0,0.00014842,2]
[361275697,1747414235307,-151.0,0.00014842,2]
[361275698,1747414235316,-936.604922,0.00014842,2]
[361275699,1747414235326,-2.7341439,0.00014842,2]
[361275700,1747414235354,-933.8707781,0.00014842,2]
[361275701,1747414235364,-151.0,0.00014842,2]
[361275702,1747414235373,-151.0,0.00014842,2]
[361275703,1747414235382,-151.0,0.00014842,2]
[361275704,1747414235391,-151.0,0.00014842,2]
[361275705,1747414235400,-151.0,0.00014842,2]
[361275706,1747414235410,-151.0,0.00014842,2]
[361275707,1747414235419,-151.0,0.00014842,2]
[361275708,1747414235428,-151.0,0.00014849,2]
[361275709,1747414235437,-295.301443,0.00014849,2]
[361275710,1747414235447,-151.0,0.00014849,2]
[361275711,1747414235456,-154.810056,0.00014849,2]
[361275712,1747414235465,-1512.06601593,0.0001485,2]
[361275713,1747414235477,-555.00371477,0.0001485,2]
[361276312,1747414246218,-701.39368558,0.00013561,14]
[361276313,1747414246230,-2294.96124186,0.00013561,14]
[361276549,1747415107267,250.0,0.00011663,2]
[361276550,1747415158657,500.0,0.00027397,120]
[361276551,1747415171571,5000.0,0.00012,2]
[361276552,1747415184661,186.394286,0.00011833,2]
[361276553,1747415187290,5000.0,0.00012,2]
[361276554,1747415202446,5000.0,0.00012,2]
[361276555,1747415217382,5000.0,0.00012,2]
[361276556,1747415233671,5000.0,0.00012,2]
[361276557,1747415250001,5000.0,0.00012,2]
[361276559,1747415265687,5000.0,0.00012,2]
[361276560,1747415281531,5000.0,0.00012,2]
[361276561,1747415297288,5000.0,0.00012,2]
[361276562,1747415313477,5000.0,0.00012,2]
[361276563,1747415328719,5000.0,0.00012,2]
[361276564,1747415344482,5000.0,0.00012,2]
[361276565,1747415359774,5000.0,0.00012,2]
[361276566,1747415374951,5000.0,0.00012,2]
[361276567,1747415390047,5000.0,0.00012,2]
[361276568,1747415406304,5000.0,0.00012,2]
[361276569,1747415422040,5000.0,0.00012,2]
[361276609,1747415432714,-300.0,0.00012202,2]
[361276610,1747415432724,-300.0,0.00012202,2]
[361276611,1747415432734,-1200.0,0.00012202,2]
[361276612,1747415432743,-300.0,0.00012202,2]
[361276613,1747415432753,-7390.0165067,0.00012203,2]
[361276614,1747415432762,-444.76270921,0.00012568,2]
[361276615,1747415432772,-999.92556039,0.00012691,2]
[361276616,1747415432782,-6022.86371085,0.00012691,2]
[361276617,1747415432791,-500.0,0.00012691,2]
[361276618,1747415432801,-500.0,0.00012691,2]
[361276619,1747415432811,-500.0,0.00012691,2]
[361276620,1747415432820,-359.35396711,0.00012691,2]
[361276621,1747415432830,-500.0,0.00012691,2]
[361276622,1747415432839,-500.0,0.00012691,2]
[361276623,1747415432849,-500.0,0.00012691,2]
[361276624,1747415432859,-500.0,0.00012691,2]
[361276625,1747415432868,-500.0,0.00012691,2]
[361276626,1747415432878,-500.0,0.00012691,2]
[361276627,1747415432887,-500.0,0.00012691,2]
[361276628,1747415432896,-500.0,0.00012691,2]
[361276629,1747415432906,-500.0,0.00012691,2]
[361276630,1747415432915,-500.0,0.00012691,2]
[361276631,1747415432925,-500.0,0.00012691,2]
[361276632,1747415432936,-500.0,0.00012691,2]
[361276633,1747415432945,-500.0,0.00012691,2]
[361276634,1747415432955,-201.26873275,0.00012691,2]
[361276635,1747415432964,-500.0,0.00012691,2]
[361276636,1747415432974,-500.0,0.00012691,2]
[361276637,1747415432983,-500.0,0.00012691,2]
[361276638,1747415432993,-500.0,0.00012691,2]
[361276639,1747415433003,-500.0,0.00012691,2]
[361276640,1747415433013,-500.0,0.00012691,2]
[361276641,1747415433025,-500.0,0.00012691,2]
[361276642,1747415433035,-500.0,0.00012691,2]
[361276643,1747415433045,-500.0,0.00012691,2]
[361276644,1747415433055,-24900.0,0.00012695,2]
[361276645,1747415433064,-181.531825,0.00012695,2]
[361276646,1747415433074,-11033.63539676,0.00013,2]
[361276647,1747415433084,-152.0,0.00013225,2]
[361276648,1747415433094,-500.0,0.0001335,2]
[361276649,1747415433104,-501.88932051,0.0001335,2]
[361276650,1747415433114,-500.0,0.0001335,2]
[361276651,1747415433124,-500.0,0.0001335,2]
[361276652,1747415433134,-168.25149322,0.00013378,2]
[361276653,1747415433144,-155.79887408,0.00013378,2]
[361276654,1747415433153,-204.2384552,0.00013378,2]
[361276655,1747415433163,-500.0,0.00013378,2]
[361276656,1747415433173,-500.0,0.00013378,2]
[361276657,1747415433183,-420.0,0.00013392,2]
[361276658,1747415433194,-300.0,0.00013392,2]
[361276659,1747415433204,-158.0124312,0.000134,2]
[361276660,1747415433214,-569.459184,0.000134,2]
[361276661,1747415433224,-153.0,0.000134,2]
[361276662,1747415433233,-363.2556249,0.000134,2]
[361276663,1747415433243,-249.95650286,0.000134,2]
[361276664,1747415433252,-158.0124312,0.000134,2]
[361276665,1747415433262,-153.0,0.000134,2]
[361276666,1747415433272,-153.0,0.000134,2]
[361276667,1747415433281,-153.0,0.000134,2]
[361276668,1747415433290,-500.0,0.0001348,2]
[361276669,1747415433300,-158.0124312,0.000135,2]
[361276670,1747415433309,-363.2556249,0.000135,2]
[361276671,1747415433319,-569.459184,0.000135,2]
[361276672,1747415433328,-158.0124312,0.000135,2]
[361276673,1747415433338,-361.1057873,0.000135,2]
[361276674,1747415433347,-153.0,0.000135,2]
[361276675,1747415433357,-566.2214024,0.000135,2]
[361276676,1747415433366,-500.0,0.000135,2]
[361276677,1747415433375,-500.0,0.000135,2]
[361276678,1747415433385,-258.24463679,0.000135,2]
[361276679,1747415433393,-500.0,0.000135,2]
[361276680,1747415433403,-500.0,0.000135,2]
[361276681,1747415433412,-500.0,0.000135,2]
[361276682,1747415433422,-500.0,0.000135,2]
[361276683,1747415433432,-500.0,0.00013697,2]
[361276684,1747415433443,-500.0,0.00013697,2]
[361276685,1747415433452,-377.57781072,0.00013697,2]
[361276686,1747415433462,-500.0,0.00013697,2]
[361276687,1747415433472,-154.19171386,0.00013697,2]
[361276688,1747415433482,-500.0,0.00013697,2]
[361276689,1747415433493,-450.0,0.00013698,2]
[361276690,1747415433503,-400.0,0.00013698,2]
[361276691,1747415433512,-400.0,0.00013698,2]
[361276692,1747415433522,-400.0,0.00013698,2]
[361276693,1747415433532,-450.0,0.00013698,2]
[361276694,1747415433541,-312.19320467,0.00013698,2]
[361276695,1747415433552,-450.0,0.00013698,2]
[361276696,1747415433562,-400.0,0.00013698,2]
[361276697,1747415433571,-450.0,0.00013698,2]
[361276698,1747415433582,-400.0,0.00013698,2]
[361276699,1747415433592,-400.0,0.00013698,2]
[361276700,1747415433602,-400.0,0.00013698,2]
[361276701,1747415433611,-450.0,0.00013698,2]
[361276702,1747415433621,-400.0,0.00013698,2]
[361276703,1747415433630,-400.0,0.00013698,2]
[361276704,1747415433640,-400.0,0.00013698,2]
[361276705,1747415433650,-450.0,0.00013698,2]
[361276706,1747415433659,-400.0,0.00013698,2]
[361276707,1747415433669,-400.0,0.00013698,2]
[361276708,1747415433678,-400.0,0.00013698,2]
[361276709,1747415433687,-400.0,0.00013698,2]
[361276710,1747415433697,-400.0,0.00013698,2]
[361276711,1747415433706,-450.0,0.00013698,2]